[Event "FIDE WYCC Top Boards Girls 2023"]
[Site "Montesilvano"]
[Date "2023.11.15"]
[Round "3.9"]
[White "Wang, Chuqiao"]
[Black "Tejaswini G"]
[Result "1/2-1/2"]
[ECO "E62"]
[WhiteElo "2215"]
[BlackElo "1956"]
[Annotator "ChessBase"]
[PlyCount "148"]
[EventDate "2023.11.13"]
[EventType "swiss"]
[EventCountry "ITA"]
[SourceTitle "playchess.com"]
[Source "ChessBase"]
[SourceQuality "1"]
[TimeControl "40/5400+30:1800+30"]

1. d4 {[%emt 0:00:05]} Nf6 {[%emt 0:00:37]} 2. c4 {[%emt 0:00:08]} g6 {[%emt 0:00:05]} 3. g3 {[%emt 0:00:03]} Bg7 {[%emt 0:00:06]} 4. Bg2 {[%emt 0:00:03]} O-O {[%emt 0:00:09]} 5. Nf3 {[%emt 0:00:06]} d6 {[%emt 0:00:06]} 6. O-O {[%emt 0:00:04]} c6 {[%emt 0:00:06]} 7. Nc3 {[%emt 0:00:06]} Bf5 {[%emt 0:00:07]} 8. Bf4 {[%emt 0:00:03]} Ne4 {[%emt 0:00:20]} 9. Na4 {[%emt 0:00:11]} Be6 {[%emt 0:11:30]} 10. Qc2 {[%emt 0:03:18]} d5 {[%emt 0:01:48]} 11. c5 {[%emt 0:05:18]} Nd7 {[%emt 0:08:17]} 12. Rfd1 {[%emt 0:02:59]} h6 {[%emt 0:02:34]} 13. h4 {[%emt 0:02:24]} Bf5 {[%emt 0:01:17]} 14. Qc1 {[%emt 0:02:45]} Qa5 {[%emt 0:05:35]} 15. b3 {[%emt 0:04:04]} Kh7 {[%emt 0:00:43]} 16. Ne5 {[%emt 0:10:01]} Nxe5 {[%emt 0:15:25]} 17. Bxe5 {[%emt 0:00:14]} f6 {[%emt 0:06:14]} 18. Bf4 {[%emt 0:00:50]} g5 {[%emt 0:00:32]} 19. hxg5 {[%emt 0:02:52]} fxg5 {[%emt 0:00:13]} 20. Be5 {[%emt 0:00:55]} Bxe5 {[%emt 0:00:37]} 21. dxe5 {[%emt 0:00:05]} Qc7 {[%emt 0:00:16]} 22. Qb2 {[%emt 0:03:48]} e6 {[%emt 0:03:38]} 23. Qd4 {[%emt 0:03:53]} Bg6 {[%emt 0:01:28]} 24. Rf1 {[%emt 0:09:51]} Qe7 {[%emt 0:02:43]} 25. Rac1 {[%emt 0:05:22]} Rf7 {[%emt 0:00:49]} 26. Nb2 {[%emt 0:04:58]} Raf8 {[%emt 0:01:01]} 27. Nd3 {[%emt 0:00:16]} Nd2 {[%emt 0:02:11]} 28. Rfd1 {[%emt 0:01:39]} Ne4 {[%emt 0:00:13]} 29. Rf1 {[%emt 0:02:42]} Nd2 {[%emt 0:14:20]} 30. Rfe1 {[%emt 0:01:01]} Ne4 {[%emt 0:00:25]} 31. Qe3 {[%emt 0:02:51]} Nxf2 {[%emt 0:05:30]} 32. Nxf2 {[%emt 0:00:05]} Rxf2 {[%emt 0:00:03]} 33. Bf3 {[%emt 0:00:04]} R2xf3 {[%emt 0:05:03]} 34. exf3 {[%emt 0:00:06]} Qf7 {[%emt 0:01:11]} 35. Rf1 {[%emt 0:00:27]} Qf5 {[%emt 0:01:31]} 36. Kg2 {[%emt 0:02:17]} Qd3 {[%emt 0:01:53]} 37. Qxd3 {[%emt 0:00:48]} Bxd3 {[%emt 0:00:02]} 38. Rf2 {[%emt 0:01:23]} h5 {[%emt 0:01:27]} 39. Rd1 {[%emt 0:02:04]} Ba6 {[%emt 0:01:38]} 40. Rfd2 {[%emt 0:00:00]} Kg6 {[%emt 0:00:00]} 41. Re1 {[%emt 0:13:21]} Bb5 {[%emt 0:03:22]} 42. Rd4 {[%emt 0:02:23]} Rf7 {[%emt 0:01:24]} 43. Rd2 {[%emt 0:02:24]} Ba6 {[%emt 0:00:19]} 44. Rdd1 {[%emt 0:06:32]} Bb5 {[%emt 0:00:35]} 45. Kf2 {[%emt 0:00:56]} g4 {[%emt 0:03:43]} 46. Re3 {[%emt 0:00:57]} Rf5 {[%emt 0:00:05]} 47. Rd4 {[%emt 0:02:35]} gxf3 {[%emt 0:00:45]} 48. g4 {[%emt 0:00:18]} hxg4 {[%emt 0:02:08]} 49. Rxg4+ {[%emt 0:00:01]} Kh5 {[%emt 0:00:18]} 50. Rg7 {[%emt 0:00:44]} Be2 {[%emt 0:00:54]} 51. Rxb7 {[%emt 0:01:43]} d4 {[%emt 0:02:47]} 52. Rxe2 {[%emt 0:00:13]} fxe2+ {[%emt 0:00:07]} 53. Kxe2 {[%emt 0:00:01]} Rxe5+ {[%emt 0:00:12]} 54. Kd3 {[%emt 0:00:04]} Rxc5 {[%emt 0:00:25]} 55. Kxd4 {[%emt 0:00:03]} Ra5 {[%emt 0:01:18]} 56. Re7 {[%emt 0:01:09]} Rxa2 {[%emt 0:00:35]} 57. Rxe6 {[%emt 0:00:05]} Rc2 {[%emt 0:01:59]} 58. Re7 {[%emt 0:00:11]} Kg5 {[%emt 0:01:32]} 59. Rxa7 {[%emt 0:00:13]} Kf6 {[%emt 0:00:06]} 60. Kd3 {[%emt 0:00:28]} Rc1 {[%emt 0:00:09]} 61. Kd2 {[%emt 0:00:19]} Rc5 {[%emt 0:00:32]} 62. Kd3 {[%emt 0:01:59]} Ke6 {[%emt 0:00:11]} 63. b4 {[%emt 0:00:03]} Rc1 {[%emt 0:00:10]} 64. Kd4 {[%emt 0:00:04]} Kd6 {[%emt 0:00:11]} 65. Rh7 {[%emt 0:00:05]} Rd1+ {[%emt 0:00:11]} 66. Kc4 {[%emt 0:00:11]} Rc1+ {[%emt 0:00:07]} 67. Kb3 {[%emt 0:00:11]} Re1 {[%emt 0:00:50]} 68. Ka4 {[%emt 0:00:18]} Ra1+ {[%emt 0:00:07]} 69. Kb3 {[%emt 0:00:12]} Re1 {[%emt 0:00:05]} 70. Ka4 {[%emt 0:00:18]} Ra1+ {[%emt 0:00:19]} 71. Kb3 {[%emt 0:00:02]} Re1 {[%emt 0:00:07]} 72. Ka4 {[%emt 0:00:03]} Ra1+ {[%emt 0:00:05]} 73. Kb3 {[%emt 0:00:05]} Re1 {[%emt 0:00:08]} 74. Ka4 {[%emt 0:00:08]} Ra1+ {[%emt 0:00:05]} 1/2-1/2

[Event "FIDE WYCC Top Boards Girls 2023"]
[Site "Montesilvano"]
[Date "2023.11.15"]
[Round "3.10"]
[White "Tokarz, Izabela"]
[Black "Siekanska, Maria"]
[Result "1/2-1/2"]
[ECO "D38"]
[WhiteElo "1931"]
[BlackElo "2180"]
[Annotator "ChessBase"]
[PlyCount "180"]
[EventDate "2023.11.13"]
[EventType "swiss"]
[EventCountry "ITA"]
[SourceTitle "playchess.com"]
[Source "ChessBase"]
[SourceQuality "1"]
[TimeControl "40/5400+30:1800+30"]

1. d4 {[%emt 0:00:01]} d5 {[%emt 0:00:06]} 2. c4 {[%emt 0:00:06]} e6 {[%emt 0:00:06]} 3. Nc3 {[%emt 0:00:08]} Nf6 {[%emt 0:00:06]} 4. Nf3 {[%emt 0:00:07]} Bb4 {[%emt 0:02:41]} 5. Qa4+ {[%emt 0:00:08]} Nc6 {[%emt 0:00:06]} 6. a3 {[%emt 0:00:05]} Bxc3+ {[%emt 0:01:14]} 7. bxc3 {[%emt 0:00:01]} dxc4 {[%emt 0:02:03]} 8. Qxc4 {[%emt 0:04:15]} O-O {[%emt 0:00:25]} 9. Bg5 {[%emt 0:01:05]} h6 {[%emt 0:04:11]} 10. Bh4 {[%emt 0:00:21]} Re8 {[%emt 0:12:13]} 11. e4 {[%emt 0:10:56]} g5 {[%emt 0:05:49]} 12. Nxg5 {[%emt 0:06:00]} hxg5 {[%emt 0:00:23]} 13. Bxg5 {[%emt 0:00:03]} e5 {[%emt 0:00:11]} 14. d5 {[%emt 0:00:26]} Nb8 {[%emt 0:03:23]} 15. Rd1 {[%emt 0:06:54]} Qd6 {[%emt 0:12:00]} 16. Bxf6 {[%emt 0:06:10]} Qxf6 {[%emt 0:00:07]} 17. Qxc7 {[%emt 0:00:08]} Qg6 {[%emt 0:05:11]} 18. Rd3 {[%emt 0:13:59]} Qxe4+ {[%emt 0:03:45]} 19. Be2 {[%emt 0:00:06]} Bf5 {[%emt 0:16:52]} 20. Qxb7 {[%emt 0:02:04]} Nd7 {[%emt 0:00:59]} 21. Rg3+ {[%emt 0:17:02]} Kh7 {[%emt 0:00:39]} 22. Qb4 {[%emt 0:12:47]} Qxb4 {[%emt 0:02:49]} 23. axb4 {[%emt 0:00:04]} a5 {[%emt 0:00:15]} 24. Rf3 {[%emt 0:04:57]} Bg6 {[%emt 0:01:41]} 25. O-O {[%emt 0:00:36]} axb4 {[%emt 0:00:37]} 26. cxb4 {[%emt 0:00:02]} Nb6 {[%emt 0:00:27]} 27. Bb5 {[%emt 0:00:41]} Red8 {[%emt 0:00:51]} 28. Bc6 {[%emt 0:00:04]} Rac8 {[%emt 0:01:00]} 29. b5 {[%emt 0:02:49]} Nxd5 {[%emt 0:00:26]} 30. Re1 {[%emt 0:00:53]} Nb4 {[%emt 0:05:29]} 31. h4 {[%emt 0:03:19]} Nxc6 {[%emt 0:01:04]} 32. bxc6 {[%emt 0:00:02]} Rxc6 {[%emt 0:00:16]} 33. Rxe5 {[%emt 0:00:01]} Rd4 {[%emt 0:03:09]} 34. Rh3 {[%emt 0:02:31]} Rc1+ {[%emt 0:04:23]} 35. Kh2 {[%emt 0:00:02]} Rc2 {[%emt 0:00:44]} 36. f3 {[%emt 0:01:04]} f6 {[%emt 0:03:06]} 37. Ra5 {[%emt 0:01:50]} Bd3 {[%emt 0:00:49]} 38. Rh5+ {[%emt 0:00:54]} Kg6 {[%emt 0:00:44]} 39. Rh8 {[%emt 0:00:05]} Kg7 {[%emt 0:00:32]} 40. Rh5 {[%emt 0:00:00]} Kg6 {[%emt 0:00:00]} 41. Rh8 {[%emt 0:02:07]} Kg7 {[%emt 0:04:29]} 42. Rh5 {[%emt 0:01:00]} Rcc4 {[%emt 0:00:54]} 43. Kg3 {[%emt 0:02:10]} Kg6 {[%emt 0:05:27]} 44. Ra5 {[%emt 0:00:47]} Rc2 {[%emt 0:04:03]} 45. Rh1 {[%emt 0:01:12]} f5 {[%emt 0:01:03]} 46. Re1 {[%emt 0:02:32]} Bc4 {[%emt 0:00:42]} 47. Rb1 {[%emt 0:01:09]} Rd6 {[%emt 0:05:33]} 48. Ra8 {[%emt 0:09:59]} Kh6 {[%emt 0:01:16]} 49. Kh3 {[%emt 0:01:14]} Be6 {[%emt 0:02:23]} 50. Rab8 {[%emt 0:02:26]} f4+ {[%emt 0:03:02]} 51. Kh2 {[%emt 0:00:01]} Rdd2 {[%emt 0:00:33]} 52. Rg1 {[%emt 0:00:01]} Kg6 {[%emt 0:01:27]} 53. Rf8 {[%emt 0:05:05]} Bf5 {[%emt 0:01:37]} 54. Rg8+ {[%emt 0:00:28]} Kf6 {[%emt 0:00:50]} 55. Rf8+ {[%emt 0:00:12]} Ke5 {[%emt 0:02:30]} 56. Re1+ {[%emt 0:00:32]} Re2 {[%emt 0:00:02]} 57. Re8+ {[%emt 0:00:27]} Be6 {[%emt 0:00:01]} 58. Rxe2+ {[%emt 0:00:26]} Rxe2 {[%emt 0:00:02]} 59. Rf8 {[%emt 0:02:11]} Ra2 {[%emt 0:00:26]} 60. Kg1 {[%emt 0:00:32]} Ra7 {[%emt 0:01:00]} 61. Kf2 {[%emt 0:00:55]} Rg7 {[%emt 0:00:33]} 62. Re8 {[%emt 0:00:31]} Ra7 {[%emt 0:01:33]} 63. Rf8 {[%emt 0:00:10]} Ra2+ {[%emt 0:00:22]} 64. Kg1 {[%emt 0:00:02]} Ra1+ {[%emt 0:00:06]} 65. Kh2 {[%emt 0:00:12]} Rb1 {[%emt 0:00:30]} 66. Re8 {[%emt 0:00:17]} Kf6 {[%emt 0:00:40]} 67. Rf8+ {[%emt 0:00:04]} Bf7 {[%emt 0:00:19]} 68. Rc8 {[%emt 0:00:49]} Rb2 {[%emt 0:01:52]} 69. Rc6+ {[%emt 0:00:22]} Ke5 {[%emt 0:00:13]} 70. Rc8 {[%emt 0:00:19]} Bd5 {[%emt 0:00:19]} 71. Re8+ {[%emt 0:00:28]} Kd4 {[%emt 0:00:32]} 72. Kh3 {[%emt 0:00:16]} Bc6 {[%emt 0:01:26]} 73. Re7 {[%emt 0:00:08]} Bd5 {[%emt 0:01:06]} 74. h5 {[%emt 0:01:52]} Bb7 {[%emt 0:02:01]} 75. Re8 {[%emt 0:00:50]} Bc6 {[%emt 0:00:29]} 76. Re7 {[%emt 0:00:09]} Bb7 {[%emt 0:00:13]} 77. Kg4 {[%emt 0:00:54]} Rxg2+ {[%emt 0:00:11]} 78. Kxf4 {[%emt 0:00:02]} Bd5 {[%emt 0:00:32]} 79. h6 {[%emt 0:05:18]} Rf2 {[%emt 0:01:09]} 80. h7 {[%emt 0:00:05]} Rxf3+ {[%emt 0:00:07]} 81. Kg5 {[%emt 0:00:21]} Rh3 {[%emt 0:00:12]} 82. Kf4 {[%emt 0:01:38]} Bc4 {[%emt 0:01:46]} 83. Rd7+ {[%emt 0:00:33]} Kc5 {[%emt 0:00:13]} 84. Kg5 {[%emt 0:00:23]} Ba2 {[%emt 0:00:34]} 85. Rb7 {[%emt 0:01:42]} Bd5 {[%emt 0:00:12]} 86. Re7 {[%emt 0:02:24]} Kd6 {[%emt 0:00:19]} 87. Ra7 {[%emt 0:00:03]} Be4 {[%emt 0:00:19]} 88. Ra6+ {[%emt 0:00:02]} Ke5 {[%emt 0:01:04]} 89. Ra5+ {[%emt 0:00:29]} Ke6 {[%emt 0:00:49]} 90. Ra6+ {[%emt 0:00:04]} Ke5 {[%emt 0:00:11]} 1/2-1/2

[Event "FIDE WYCC Top Boards Girls 2023"]
[Site "Montesilvano"]
[Date "2023.11.15"]
[Round "3.11"]
[White "Zagorac, Lara"]
[Black "Shukhman, Anna"]
[Result "1/2-1/2"]
[ECO "A61"]
[WhiteElo "1866"]
[BlackElo "2263"]
[Annotator "ChessBase"]
[PlyCount "116"]
[EventDate "2023.11.13"]
[EventType "swiss"]
[EventCountry "ITA"]
[SourceTitle "playchess.com"]
[Source "ChessBase"]
[SourceQuality "1"]
[TimeControl "40/5400+30:1800+30"]

1. d4 {[%emt 0:00:04]} Nf6 {[%emt 0:00:06]} 2. Nf3 {[%emt 0:00:09]} g6 {[%emt 0:00:04]} 3. c4 {[%emt 0:00:09]} c5 {[%emt 0:00:03]} 4. d5 {[%emt 0:01:57]} e6 {[%emt 0:00:37]} 5. Nc3 {[%emt 0:01:22]} exd5 {[%emt 0:00:05]} 6. cxd5 {[%emt 0:01:18]} d6 {[%emt 0:00:05]} 7. Bf4 {[%emt 0:01:36]} a6 {[%emt 0:00:04]} 8. a4 {[%emt 0:00:23]} Bg7 {[%emt 0:00:16]} 9. e3 {[%emt 0:01:00]} O-O {[%emt 0:00:16]} 10. Be2 {[%emt 0:01:15]} Bg4 {[%emt 0:02:12]} 11. O-O {[%emt 0:02:17]} Qe7 {[%emt 0:01:00]} 12. Qd2 {[%emt 0:05:24]} Nbd7 {[%emt 0:01:03]} 13. h3 {[%emt 0:01:52]} Bxf3 {[%emt 0:00:04]} 14. Bxf3 {[%emt 0:00:29]} c4 {[%emt 0:04:55]} 15. Be2 {[%emt 0:05:36]} Rac8 {[%emt 0:02:23]} 16. Rac1 {[%emt 0:03:07]} Ne5 {[%emt 0:04:53]} 17. Rfd1 {[%emt 0:04:36]} h6 {[%emt 0:06:00]} 18. a5 {[%emt 0:03:14]} Rfe8 {[%emt 0:32:53]} 19. Na4 {[%emt 0:22:34]} Ne4 {[%emt 0:00:33]} 20. Qc2 {[%emt 0:04:35]} f5 {[%emt 0:15:27]} 21. Nb6 {[%emt 0:05:11]} Rc7 {[%emt 0:02:36]} 22. Bxc4 {[%emt 0:09:07]} g5 {[%emt 0:04:05]} 23. Bxe5 {[%emt 0:01:11]} Qxe5 {[%emt 0:00:24]} 24. Qe2 {[%emt 0:04:19]} Qxb2 {[%emt 0:03:40]} 25. Qxb2 {[%emt 0:00:27]} Bxb2 {[%emt 0:00:05]} 26. Rc2 {[%emt 0:00:18]} Bg7 {[%emt 0:03:18]} 27. Rdc1 {[%emt 0:01:32]} Rc5 {[%emt 0:00:49]} 28. Bd3 {[%emt 0:05:08]} Nc3 {[%emt 0:01:01]} 29. Kh2 {[%emt 0:04:31]} f4 {[%emt 0:01:20]} 30. exf4 {[%emt 0:01:28]} gxf4 {[%emt 0:00:04]} 31. Bf5 {[%emt 0:01:34]} Bd4 {[%emt 0:02:59]} 32. Be6+ {[%emt 0:01:05]} Kh8 {[%emt 0:00:37]} 33. Rd2 {[%emt 0:01:42]} Bg7 {[%emt 0:00:13]} 34. Rdc2 {[%emt 0:01:13]} Re7 {[%emt 0:05:47]} 35. h4 {[%emt 0:00:26]} Bd4 {[%emt 0:01:22]} 36. Rd2 {[%emt 0:03:07]} Nb5 {[%emt 0:00:52]} 37. Rxc5 {[%emt 0:00:31]} Bxc5 {[%emt 0:00:07]} 38. Re2 {[%emt 0:00:50]} Bxb6 {[%emt 0:05:14]} 39. axb6 {[%emt 0:00:11]} Nd4 {[%emt 0:00:02]} 40. Re4 {[%emt 0:00:00]} Nxe6 {[%emt 0:00:00]} 41. dxe6 {[%emt 0:01:23]} d5 {[%emt 0:10:27]} 42. Re5 {[%emt 0:14:38]} Kg7 {[%emt 0:03:04]} 43. Rxd5 {[%emt 0:01:45]} Kf6 {[%emt 0:00:02]} 44. Rh5 {[%emt 0:04:29]} Rxe6 {[%emt 0:00:44]} 45. Rxh6+ {[%emt 0:00:28]} Kf5 {[%emt 0:00:04]} 46. Rh8 {[%emt 0:03:37]} Rxb6 {[%emt 0:01:48]} 47. Kh3 {[%emt 0:00:58]} Rb4 {[%emt 0:06:10]} 48. Rf8+ {[%emt 0:01:53]} Kg6 {[%emt 0:00:07]} 49. Kg4 {[%emt 0:01:37]} a5 {[%emt 0:00:02]} 50. h5+ {[%emt 0:01:25]} Kh6 {[%emt 0:02:15]} 51. Rh8+ {[%emt 0:01:13]} Kg7 {[%emt 0:00:04]} 52. Ra8 {[%emt 0:00:31]} b6 {[%emt 0:00:16]} 53. Kg5 {[%emt 0:00:42]} Rb5+ {[%emt 0:00:13]} 54. Kg4 {[%emt 0:00:55]} Rb2 {[%emt 0:01:33]} 55. Kg5 {[%emt 0:03:32]} Rb5+ {[%emt 0:00:17]} 56. Kg4 {[%emt 0:00:06]} Kf6 {[%emt 0:02:35]} 57. Rf8+ {[%emt 0:00:20]} Kg7 {[%emt 0:01:19]} 58. Ra8 {[%emt 0:01:38]} Rb2 {[%emt 0:01:02]} 1/2-1/2

[Event "FIDE WYCC Top Boards Girls 2023"]
[Site "Montesilvano"]
[Date "2023.11.15"]
[Round "3.12"]
[White "Nurgaliyeva, Zarina"]
[Black "Zhang, Michelle"]
[Result "1-0"]
[ECO "B12"]
[WhiteElo "2104"]
[BlackElo "1833"]
[Annotator "NA"]
[PlyCount "67"]
[EventDate "2023.11.13"]
[EventType "swiss"]
[EventCountry "ITA"]
[SourceTitle "playchess.com"]
[Source "ChessBase"]
[SourceQuality "1"]
[TimeControl "40/5400+30:1800+30"]

1. e4 {[%emt 0:00:04]} c6 {[%emt 0:00:19]} 2. d4 {[%emt 0:00:11]} d5 {[%emt 0:00:33]} 3. e5 {[%emt 0:00:15]} Bf5 {[%emt 0:00:51]} 4. Nd2 {[%emt 0:00:21]} e6 {[%emt 0:01:14]} 5. Nb3 {[%emt 0:00:19]} Nd7 {[%emt 0:01:06]} 6. Nf3 {[%emt 0:00:15]} a6 {[%emt 0:03:55]} 7. Be2 {[%emt 0:00:34]} Rc8 {[%emt 0:02:11]} 8. O-O {[%emt 0:03:18]} c5 {[%emt 0:03:23]} 9. dxc5 {[%emt 0:00:46]} Bxc5 {[%emt 0:01:34]} 10. Nxc5 {[%emt 0:00:22]} Nxc5 {[%emt 0:00:36]} 11. Nd4 {[%emt 0:04:45]} Bg6 {[%emt 0:04:05]} 12. a4 {[%emt 0:02:40]} Ne7 {[%emt 0:02:56]} 13. c3 {[%emt 0:06:32]} O-O {[%emt 0:01:58]} 14. a5 {[%emt 0:03:08]} Nc6 {[%emt 0:08:23]} 15. Nxc6 {[%emt 0:01:54]} Rxc6 {[%emt 0:03:02]} 16. Be3 {[%emt 0:02:58]} h6 {[%emt 0:06:24]} 17. Bd4 {[%emt 0:00:57]} Qh4 {[%emt 0:05:39]} 18. b4 {[%emt 0:13:47]} Ne4 {[%emt 0:01:58]} 19. Rc1 {[%emt 0:01:09]} Rfc8 {[%emt 0:01:20]} 20. Qe1 {[%emt 0:01:07]} Qf4 {[%emt 0:15:57]} 21. b5 {[%emt 0:25:28]} axb5 {[%emt 0:06:43]} 22. Bxb5 {[%emt 0:00:39]} R6c7 {[%emt 0:03:01]} 23. f3 {[%emt 0:05:15]} Nc5 {[%emt 0:04:41]} 24. Qd1 {[%emt 0:01:00]} Qf5 {[%emt 0:04:53]} 25. Re1 {[%emt 0:02:52]} Nd3 {[%emt 0:04:28]} 26. g4 {[%emt 0:01:48]} Qf4 {[%emt 0:05:37]} 27. Bxd3 {[%emt 0:00:24]} Qxd4+ {[%emt 0:02:54]} 28. cxd4 {[%emt 0:00:08]} Rxc1 {[%emt 0:00:08]} 29. Qxc1 {[%emt 0:00:02]} Rxc1 {[%emt 0:00:08]} 30. Rxc1 {[%emt 0:00:02]} Bxd3 {[%emt 0:00:09]} 31. Rc8+ {[%emt 0:00:11]} Kh7 {[%emt 0:00:07]} 32. Rc7 {[%emt 0:00:04]} Ba6 {[%emt 0:00:33]} 33. Rxf7 {[%emt 0:00:06]} Kg6 {[%emt 0:00:08]} 34. Re7 {[%emt 0:00:07]} 1-0

[Event "FIDE WYCC Top Boards Girls 2023"]
[Site "Montesilvano"]
[Date "2023.11.16"]
[Round "4.7"]
[White "Hrebenshchykova, Yelyzaveta"]
[Black "Mungunzul, Bat-Erdene"]
[Result "1-0"]
[ECO "A41"]
[WhiteElo "2292"]
[BlackElo "2111"]
[Annotator "RC"]
[PlyCount "109"]
[EventDate "2023.11.13"]
[EventType "swiss"]
[EventCountry "ITA"]
[SourceTitle "playchess.com"]
[Source "ChessBase"]
[SourceQuality "1"]
[TimeControl "40/5400+30:1800+30"]

1. c4 {[%emt 0:00:02]} e5 {[%emt 0:01:31]} 2. e3 {[%emt 0:00:22]} g6 {[%emt 0:09:46]} 3. Nc3 {[%emt 0:11:48]} Bg7 {[%emt 0:01:28]} 4. d4 {[%emt 0:07:05]} d6 {[%emt 0:01:16]} 5. Nf3 {[%emt 0:06:01]} Nd7 {[%emt 0:05:02]} 6. Be2 {[%emt 0:04:20]} Ne7 {[%emt 0:03:30]} 7. O-O {[%emt 0:03:42]} O-O {[%emt 0:00:19]} 8. Qc2 {[%emt 0:03:15]} h6 {[%emt 0:12:36]} 9. Rd1 {[%emt 0:01:51]} Kh7 {[%emt 0:04:29]} 10. b3 {[%emt 0:06:54]} b6 {[%emt 0:06:31]} 11. dxe5 {[%emt 0:05:06]} Nxe5 {[%emt 0:01:34]} 12. Nxe5 {[%emt 0:06:25]} Bxe5 {[%emt 0:00:17]} 13. Bf3 {[%emt 0:00:17]} Rb8 {[%emt 0:05:46]} 14. Bb2 {[%emt 0:02:16]} Bb7 {[%emt 0:02:31]} 15. Nd5 {[%emt 0:03:51]} Nc6 {[%emt 0:00:42]} 16. Be2 {[%emt 0:01:41]} Bxb2 {[%emt 0:03:54]} 17. Qxb2 {[%emt 0:00:03]} Ne5 {[%emt 0:00:07]} 18. f4 {[%emt 0:06:13]} Nd7 {[%emt 0:00:14]} 19. Bf3 {[%emt 0:00:29]} Re8 {[%emt 0:03:44]} 20. Re1 {[%emt 0:07:53]} Bxd5 {[%emt 0:02:59]} 21. cxd5 {[%emt 0:00:09]} a5 {[%emt 0:01:34]} 22. Qc3 {[%emt 0:03:36]} Rb7 {[%emt 0:10:19]} 23. a3 {[%emt 0:01:25]} Ra7 {[%emt 0:00:43]} 24. Rac1 {[%emt 0:01:58]} Qf6 {[%emt 0:02:07]} 25. Qxf6 {[%emt 0:05:09]} Nxf6 {[%emt 0:00:03]} 26. Kf2 {[%emt 0:00:03]} Kg7 {[%emt 0:00:21]} 27. Rc2 {[%emt 0:02:36]} Nd7 {[%emt 0:01:55]} 28. b4 {[%emt 0:01:36]} Re7 {[%emt 0:02:22]} 29. Rec1 {[%emt 0:01:04]} axb4 {[%emt 0:01:24]} 30. axb4 {[%emt 0:00:03]} Nf6 {[%emt 0:00:27]} 31. Rc4 {[%emt 0:01:08]} Kf8 {[%emt 0:01:21]} 32. R1c2 {[%emt 0:02:19]} Ke8 {[%emt 0:01:02]} 33. h4 {[%emt 0:01:47]} h5 {[%emt 0:02:15]} 34. e4 {[%emt 0:02:22]} Kd8 {[%emt 0:00:28]} 35. Re2 {[%emt 0:00:04]} Nd7 {[%emt 0:01:50]} 36. Rcc2 {[%emt 0:00:42]} Ra4 {[%emt 0:03:52]} 37. Ra2 {[%emt 0:01:18]} b5 {[%emt 0:01:57]} 38. Rxa4 {[%emt 0:00:59]} bxa4 {[%emt 0:00:02]} 39. Ke3 {[%emt 0:00:04]} Kc8 {[%emt 0:01:41]} 40. Kd4 {[%emt 0:00:00]} Kb7 {[%emt 0:00:00]} 41. Ra2 {[%emt 0:08:06]} Nb6 {[%emt 0:08:40]} 42. e5 {[%emt 0:06:06]} Kb8 {[%emt 0:01:21]} 43. g3 {[%emt 0:01:50]} Rd7 {[%emt 0:04:54]} 44. b5 {[%emt 0:01:09]} Re7 {[%emt 0:03:19]} 45. Bg2 {[%emt 0:01:30]} Nd7 {[%emt 0:05:42]} 46. Rxa4 {[%emt 0:07:29]} dxe5+ {[%emt 0:00:34]} 47. fxe5 {[%emt 0:00:02]} Rxe5 {[%emt 0:01:53]} 48. d6 {[%emt 0:01:01]} cxd6 {[%emt 0:00:40]} 49. Ra8+ {[%emt 0:00:13]} Kc7 {[%emt 0:00:06]} 50. Ra7+ {[%emt 0:00:10]} Kd8 {[%emt 0:01:47]} 51. Bc6 {[%emt 0:00:32]} Re7 {[%emt 0:00:57]} 52. Bxd7 {[%emt 0:05:07]} Rxd7 {[%emt 0:00:06]} 53. b6 {[%emt 0:00:04]} Kc8 {[%emt 0:00:41]} 54. Kd5 {[%emt 0:00:28]} f6 {[%emt 0:03:04]} 55. Kc6 {[%emt 0:00:18]} 1-0

[Event "FIDE WYCC Top Boards Girls 2023"]
[Site "Montesilvano"]
[Date "2023.11.16"]
[Round "4.8"]
[White "Wu, Rochelle"]
[Black "Mihelic, Vesna"]
[Result "1-0"]
[ECO "D31"]
[WhiteElo "2228"]
[BlackElo "2102"]
[Annotator "RC"]
[PlyCount "109"]
[EventDate "2023.11.13"]
[EventType "swiss"]
[EventCountry "ITA"]
[SourceTitle "playchess.com"]
[Source "ChessBase"]
[SourceQuality "1"]
[TimeControl "40/5400+30:1800+30"]

1. d4 {[%emt 0:00:03]} d5 {[%emt 0:00:05]} 2. c4 {[%emt 0:00:05]} e6 {[%emt 0:00:05]} 3. Nc3 {[%emt 0:00:07]} h6 {[%emt 0:00:06]} 4. cxd5 {[%emt 0:00:13]} exd5 {[%emt 0:00:07]} 5. Bf4 {[%emt 0:00:12]} c6 {[%emt 0:00:09]} 6. e3 {[%emt 0:00:48]} Bf5 {[%emt 0:01:22]} 7. Bd3 {[%emt 0:02:54]} Bxd3 {[%emt 0:00:27]} 8. Qxd3 {[%emt 0:00:06]} Bd6 {[%emt 0:00:48]} 9. Bxd6 {[%emt 0:00:10]} Qxd6 {[%emt 0:00:07]} 10. Nge2 {[%emt 0:00:07]} Nf6 {[%emt 0:00:50]} 11. f3 {[%emt 0:00:35]} O-O {[%emt 0:02:21]} 12. O-O {[%emt 0:01:34]} Nbd7 {[%emt 0:06:05]} 13. Rad1 {[%emt 0:04:26]} Rad8 {[%emt 0:02:42]} 14. e4 {[%emt 0:04:15]} dxe4 {[%emt 0:03:05]} 15. fxe4 {[%emt 0:00:07]} Qe6 {[%emt 0:18:48]} 16. Qc2 {[%emt 0:11:21]} Nb6 {[%emt 0:05:08]} 17. Rf3 {[%emt 0:07:08]} Nh7 {[%emt 0:05:37]} 18. Nf4 {[%emt 0:19:17]} Qc4 {[%emt 0:04:06]} 19. Qf2 {[%emt 0:02:12]} Ng5 {[%emt 0:03:19]} 20. Rg3 {[%emt 0:03:04]} Kh8 {[%emt 0:17:45]} 21. Nh5 {[%emt 0:06:30]} f5 {[%emt 0:09:33]} 22. exf5 {[%emt 0:17:06]} Qf7 {[%emt 0:01:16]} 23. h4 {[%emt 0:00:42]} Nh3+ {[%emt 0:02:57]} 24. Rxh3 {[%emt 0:00:20]} Qxh5 {[%emt 0:00:02]} 25. Rf3 {[%emt 0:00:41]} Nd5 {[%emt 0:02:36]} 26. Rf1 {[%emt 0:04:16]} Nf6 {[%emt 0:02:39]} 27. Rf4 {[%emt 0:00:06]} Rfe8 {[%emt 0:01:07]} 28. d5 {[%emt 0:04:29]} cxd5 {[%emt 0:02:21]} 29. Qxa7 {[%emt 0:00:05]} Ng4 {[%emt 0:04:36]} 30. Qd4 {[%emt 0:00:20]} Nf6 {[%emt 0:01:15]} 31. a4 {[%emt 0:01:19]} Rd7 {[%emt 0:00:33]} 32. b3 {[%emt 0:01:35]} Kh7 {[%emt 0:01:12]} 33. a5 {[%emt 0:00:53]} Ra8 {[%emt 0:01:13]} 34. b4 {[%emt 0:00:14]} Rc8 {[%emt 0:00:09]} 35. Qd3 {[%emt 0:00:19]} Kh8 {[%emt 0:00:57]} 36. Na4 {[%emt 0:00:25]} Re8 {[%emt 0:00:55]} 37. Nc5 {[%emt 0:00:54]} Rde7 {[%emt 0:00:31]} 38. Ne6 {[%emt 0:00:19]} Rxe6 {[%emt 0:00:22]} 39. fxe6 {[%emt 0:00:05]} Rxe6 {[%emt 0:00:05]} 40. b5 {[%emt 0:00:00]} Qe8 {[%emt 0:00:00]} 41. a6 {[%emt 0:06:28]} bxa6 {[%emt 0:05:10]} 42. bxa6 {[%emt 0:00:07]} Qa8 {[%emt 0:01:53]} 43. Ra1 {[%emt 0:00:36]} Re7 {[%emt 0:02:33]} 44. Qd4 {[%emt 0:01:10]} Ne4 {[%emt 0:01:53]} 45. a7 {[%emt 0:00:33]} Ng3 {[%emt 0:00:26]} 46. Kh2 {[%emt 0:01:27]} Ne2 {[%emt 0:00:33]} 47. Qc5 {[%emt 0:03:53]} Re8 {[%emt 0:00:49]} 48. Rb4 {[%emt 0:01:30]} d4 {[%emt 0:01:35]} 49. Qh5 {[%emt 0:06:03]} Kh7 {[%emt 0:02:12]} 50. Qf5+ {[%emt 0:00:29]} Kh8 {[%emt 0:00:32]} 51. Qf7 {[%emt 0:01:19]} Kh7 {[%emt 0:01:26]} 52. Rb7 {[%emt 0:00:09]} Rg8 {[%emt 0:00:08]} 53. Ra6 {[%emt 0:00:33]} Nf4 {[%emt 0:00:48]} 54. Qf5+ {[%emt 0:00:06]} Kh8 {[%emt 0:00:08]} 55. Rxh6+ {[%emt 0:00:06]} 1-0